[Event "Early-Titled-Tuesday-Blitz-January-30-2024"]
[Site "Chess.com"]
[Date "2024.01.30"]
[Round "4"]
[White "Let_it_be_1"]
[Black "1977Ivan"]
[Result "0-1"]
[WhiteElo "2571"]
[BlackElo "2799"]
[TimeControl "180+1"]
[EndTime "8:40:34 PST"]
[Termination "1977Ivan won by resignation"]

1. e4 {[%clk 0:03:00.9]} 1... e5 {[%clk 0:02:58]} 2. Nf3 {[%clk 0:03:00.7]} 2...
Nc6 {[%clk 0:02:57.9]} 3. Bb5 {[%clk 0:03:00.7]} 3... a6 {[%clk 0:02:56.7]} 4.
Ba4 {[%clk 0:03:00.9]} 4... Nf6 {[%clk 0:02:57]} 5. d4 {[%clk 0:03:01.1]} 5...
exd4 {[%clk 0:02:52.3]} 6. O-O {[%clk 0:03:01.2]} 6... Be7 {[%clk 0:02:45.8]} 7.
e5 {[%clk 0:03:01.4]} 7... Ne4 {[%clk 0:02:45.4]} 8. Nxd4 {[%clk 0:03:01.4]}
8... O-O {[%clk 0:02:39.6]} 9. Nf5 {[%clk 0:03:01]} 9... d5 {[%clk 0:02:38.1]}
10. Nxe7+ {[%clk 0:03:00.5]} 10... Nxe7 {[%clk 0:02:34.2]} 11. c3 {[%clk
0:03:00.9]} 11... Nc5 {[%clk 0:02:28.3]} 12. Bc2 {[%clk 0:03:00.7]} 12... Bf5
{[%clk 0:02:28.7]} 13. Be3 {[%clk 0:03:00.2]} 13... Bxc2 {[%clk 0:02:25.4]} 14.
Qxc2 {[%clk 0:02:59.2]} 14... Ne6 {[%clk 0:02:24.9]} 15. Nd2 {[%clk 0:02:43]}
15... c5 {[%clk 0:02:18]} 16. Nb3 {[%clk 0:02:41.9]} 16... b6 {[%clk 0:02:16.8]}
17. f4 {[%clk 0:02:39.6]} 17... g6 {[%clk 0:02:16.2]} 18. g4 {[%clk 0:02:31.3]}
18... d4 {[%clk 0:02:11.8]} 19. Rad1 {[%clk 0:02:22.9]} 19... Nd5 {[%clk
0:02:08.3]} 20. Bc1 {[%clk 0:02:19.7]} 20... Qh4 {[%clk 0:02:05.1]} 21. Qg2
{[%clk 0:02:15.9]} 21... Ne3 {[%clk 0:02:02.3]} 22. Bxe3 {[%clk 0:02:15]} 22...
dxe3 {[%clk 0:02:03.2]} 23. Rde1 {[%clk 0:01:31]} 23... Nxf4 {[%clk 0:01:56.5]}
24. Qf3 {[%clk 0:01:19.6]} 24... e2 {[%clk 0:01:35.6]} 25. Qxf4 {[%clk
0:01:13.3]} 25... exf1=Q+ {[%clk 0:01:34.8]} 26. Rxf1 {[%clk 0:01:14.2]} 26...
Rad8 {[%clk 0:01:22.7]} 27. Nd2 {[%clk 0:01:12.9]} 27... h5 {[%clk 0:01:16.4]}
28. Nc4 {[%clk 0:00:50.9]} 28... Qxg4+ {[%clk 0:01:03.2]} 29. Qxg4 {[%clk
0:00:50.6]} 29... hxg4 {[%clk 0:01:04.1]} 30. Nxb6 {[%clk 0:00:51.1]} 30... Rd2
{[%clk 0:01:01]} 31. Nc4 {[%clk 0:00:47.9]} 31... Re2 {[%clk 0:01:01.2]} 32. Rf2
{[%clk 0:00:47.2]} 32... Re4 {[%clk 0:00:52]} 33. b3 {[%clk 0:00:45]} 33... Rd8
{[%clk 0:00:51.9]} 34. Kg2 {[%clk 0:00:44.5]} 34... Rd3 {[%clk 0:00:49.2]} 35.
Rc2 {[%clk 0:00:34.5]} 35... Kg7 {[%clk 0:00:46.5]} 36. a4 {[%clk 0:00:33.8]}
36... g3 {[%clk 0:00:38.5]} 37. hxg3 {[%clk 0:00:30.5]} 37... Rg4 {[%clk
0:00:38.2]} 38. Kf1 {[%clk 0:00:21.2]} 38... Rgxg3 {[%clk 0:00:37.4]} 39. b4
{[%clk 0:00:17.9]} 39... Rxc3 {[%clk 0:00:35.9]} 40. Rxc3 {[%clk 0:00:16.9]}
40... Rxc3 {[%clk 0:00:36.8]} 0-1

[Event "Early-Titled-Tuesday-Blitz-January-30-2024"]
[Site "Chess.com"]
[Date "2024.01.30"]
[Round "4"]
[White "Zheenbekov86"]
[Black "josmito10"]
[Result "0-1"]
[WhiteElo "2444"]
[BlackElo "2766"]
[TimeControl "180+1"]
[EndTime "8:40:34 PST"]
[Termination "josmito10 won by checkmate"]

1. d4 {[%clk 0:02:56.6]} 1... e6 {[%clk 0:02:59.4]} 2. Nf3 {[%clk 0:02:56]} 2...
Nf6 {[%clk 0:02:57.7]} 3. c4 {[%clk 0:02:55]} 3... d5 {[%clk 0:02:57.4]} 4. g3
{[%clk 0:02:54.4]} 4... dxc4 {[%clk 0:02:57.3]} 5. Bg2 {[%clk 0:02:53.6]} 5...
a6 {[%clk 0:02:57.7]} 6. O-O {[%clk 0:02:53.3]} 6... b5 {[%clk 0:02:57.8]} 7.
Ne5 {[%clk 0:02:50.6]} 7... Ra7 {[%clk 0:02:58.2]} 8. a4 {[%clk 0:02:49.1]} 8...
Bb7 {[%clk 0:02:58.2]} 9. axb5 {[%clk 0:02:44.8]} 9... Bxg2 {[%clk 0:02:57.9]}
10. Kxg2 {[%clk 0:02:44.7]} 10... h5 {[%clk 0:02:45.5]} 11. h4 {[%clk
0:02:41.6]} 11... Qd5+ {[%clk 0:02:37.8]} 12. Kg1 {[%clk 0:02:41.1]} 12... Qxb5
{[%clk 0:02:26.6]} 13. Nc3 {[%clk 0:02:39.6]} 13... Qb3 {[%clk 0:02:23]} 14. Qd2
{[%clk 0:02:19]} 14... Bb4 {[%clk 0:02:13.7]} 15. e3 {[%clk 0:01:45.2]} 15... g5
{[%clk 0:01:51.5]} 16. hxg5 {[%clk 0:01:42.5]} 16... Ne4 {[%clk 0:01:45.3]} 17.
Qe2 {[%clk 0:01:42.3]} 17... Bxc3 {[%clk 0:01:41.7]} 18. Ra3 {[%clk 0:01:36.5]}
18... Qb7 {[%clk 0:01:37.2]} 19. bxc3 {[%clk 0:01:35.6]} 19... Nxg5 {[%clk
0:01:23.2]} 20. e4 {[%clk 0:01:18.9]} 20... Qxe4 {[%clk 0:01:14.1]} 21. Re1
{[%clk 0:00:56.1]} 21... Qxe2 {[%clk 0:00:39.1]} 22. Rxe2 {[%clk 0:00:53.9]}
22... Rg8 {[%clk 0:00:37.1]} 23. Nxc4 {[%clk 0:00:46.3]} 23... h4 {[%clk
0:00:35.8]} 24. Kg2 {[%clk 0:00:42.8]} 24... h3+ {[%clk 0:00:34.5]} 25. Kh2
{[%clk 0:00:42.6]} 25... Nf3+ {[%clk 0:00:32.2]} 26. Kh1 {[%clk 0:00:42.9]}
26... Rb7 {[%clk 0:00:31.2]} 27. Ra1 {[%clk 0:00:41.1]} 27... Nd7 {[%clk
0:00:27.3]} 28. Bf4 {[%clk 0:00:40.2]} 28... Nf6 {[%clk 0:00:26.5]} 29. Re3
{[%clk 0:00:39.1]} 29... Ng5 {[%clk 0:00:23.7]} 30. Rxa6 {[%clk 0:00:28.7]}
30... Rb1+ {[%clk 0:00:23.6]} 31. Kh2 {[%clk 0:00:28.6]} 31... Ng4# {[%clk
0:00:19.8]} 0-1

[Event "Early-Titled-Tuesday-Blitz-January-30-2024"]
[Site "Chess.com"]
[Date "2024.01.30"]
[Round "4"]
[White "dcann0n88"]
[Black "szefru"]
[Result "1-0"]
[WhiteElo "2447"]
[BlackElo "2273"]
[TimeControl "180+1"]
[EndTime "8:40:36 PST"]
[Termination "dcann0n88 won by resignation"]

1. d4 {[%clk 0:03:00.9]} 1... Nf6 {[%clk 0:02:55.2]} 2. c4 {[%clk 0:03:00.3]}
2... g6 {[%clk 0:02:55.2]} 3. Nc3 {[%clk 0:03:00.1]} 3... Bg7 {[%clk 0:02:55.5]}
4. e4 {[%clk 0:02:56.3]} 4... d6 {[%clk 0:02:54.4]} 5. Nf3 {[%clk 0:02:56.2]}
5... O-O {[%clk 0:02:54.2]} 6. Be2 {[%clk 0:02:56.8]} 6... e5 {[%clk 0:02:49.3]}
7. d5 {[%clk 0:02:57.2]} 7... Nbd7 {[%clk 0:02:49.1]} 8. Qc2 {[%clk 0:02:36.9]}
8... a5 {[%clk 0:02:46.2]} 9. O-O {[%clk 0:02:36.3]} 9... Nc5 {[%clk 0:02:42.9]}
10. b3 {[%clk 0:02:36.7]} 10... Ne8 {[%clk 0:02:36.7]} 11. Nd2 {[%clk
0:02:31.3]} 11... f5 {[%clk 0:02:35.4]} 12. Bb2 {[%clk 0:02:27.8]} 12... f4
{[%clk 0:02:34.5]} 13. a3 {[%clk 0:02:26]} 13... h5 {[%clk 0:02:29]} 14. b4
{[%clk 0:02:26.2]} 14... Nd7 {[%clk 0:02:26.3]} 15. Nb5 {[%clk 0:02:05.5]} 15...
Ndf6 {[%clk 0:02:20.9]} 16. c5 {[%clk 0:02:04.4]} 16... g5 {[%clk 0:02:12.4]}
17. Rac1 {[%clk 0:02:02.4]} 17... Rf7 {[%clk 0:02:06.8]} 18. cxd6 {[%clk
0:01:47]} 18... cxd6 {[%clk 0:02:07.7]} 19. bxa5 {[%clk 0:01:47.2]} 19... g4
{[%clk 0:01:39.9]} 20. g3 {[%clk 0:01:47]} 20... f3 {[%clk 0:01:29.4]} 21. Bd3
{[%clk 0:01:45.6]} 21... h4 {[%clk 0:01:27]} 22. Nc4 {[%clk 0:01:37.7]} 22...
Bd7 {[%clk 0:01:21.4]} 23. Nbxd6 {[%clk 0:01:26.9]} 23... Nxd6 {[%clk
0:01:21.5]} 24. Nxd6 {[%clk 0:01:27.8]} 24... Ba4 {[%clk 0:01:15.5]} 25. Qxa4
{[%clk 0:01:07.2]} 25... Qxd6 {[%clk 0:01:15.1]} 26. Qb4 {[%clk 0:01:07.6]}
26... Qd8 {[%clk 0:01:11.5]} 27. Bxe5 {[%clk 0:01:05.4]} 27... Nxd5 {[%clk
0:01:01.3]} 28. exd5 {[%clk 0:01:03.4]} 28... Bxe5 {[%clk 0:01:00.4]} 29. Qxg4+
{[%clk 0:00:59.1]} 29... Bg7 {[%clk 0:00:47.8]} 30. d6 {[%clk 0:00:54.1]} 30...
hxg3 {[%clk 0:00:34.9]} 31. hxg3 {[%clk 0:00:40.4]} 31... Qxa5 {[%clk 0:00:35]}
32. Bc4 {[%clk 0:00:37.6]} 32... Rf8 {[%clk 0:00:32.1]} 33. Bxf7+ {[%clk
0:00:33.4]} 33... Rxf7 {[%clk 0:00:33]} 34. Rc8+ {[%clk 0:00:33.7]} 34... Kh7
{[%clk 0:00:32.3]} 35. d7 {[%clk 0:00:28.7]} 35... Bf6 {[%clk 0:00:23.2]} 36.
Qg8+ {[%clk 0:00:25.9]} 36... Kh6 {[%clk 0:00:23]} 37. Qxf7 {[%clk 0:00:24.7]}
1-0

[Event "Early-Titled-Tuesday-Blitz-January-30-2024"]
[Site "Chess.com"]
[Date "2024.01.30"]
[Round "4"]
[White "Iball95"]
[Black "viktorgen2021"]
[Result "1-0"]
[WhiteElo "2785"]
[BlackElo "2568"]
[TimeControl "180+1"]
[EndTime "8:40:37 PST"]
[Termination "Iball95 won by resignation"]

1. e4 {[%clk 0:03:00.9]} 1... g6 {[%clk 0:02:57.9]} 2. d4 {[%clk 0:03:00.4]}
2... Bg7 {[%clk 0:02:56.2]} 3. Nf3 {[%clk 0:03:01]} 3... d6 {[%clk 0:02:56.2]}
4. Bc4 {[%clk 0:03:01.6]} 4... Nf6 {[%clk 0:02:54.9]} 5. Qe2 {[%clk 0:03:02]}
5... O-O {[%clk 0:02:53.7]} 6. h3 {[%clk 0:03:02.6]} 6... c6 {[%clk 0:02:30.1]}
7. Nbd2 {[%clk 0:02:57.3]} 7... Qc7 {[%clk 0:02:28.5]} 8. O-O {[%clk 0:02:56.5]}
8... e5 {[%clk 0:02:28.6]} 9. c3 {[%clk 0:02:52.7]} 9... h6 {[%clk 0:02:22.2]}
10. Re1 {[%clk 0:02:52]} 10... Re8 {[%clk 0:02:22.1]} 11. dxe5 {[%clk
0:02:48.2]} 11... dxe5 {[%clk 0:02:22]} 12. a4 {[%clk 0:02:48.6]} 12... Nbd7
{[%clk 0:02:19.1]} 13. Nf1 {[%clk 0:02:47.8]} 13... Nc5 {[%clk 0:02:17.9]} 14.
Ng3 {[%clk 0:02:47.6]} 14... Be6 {[%clk 0:02:16.9]} 15. b4 {[%clk 0:02:39.7]}
15... Bxc4 {[%clk 0:02:16.5]} 16. Qxc4 {[%clk 0:02:40.6]} 16... Ne6 {[%clk
0:02:16.9]} 17. Be3 {[%clk 0:02:39.7]} 17... Nf4 {[%clk 0:02:02.4]} 18. Red1
{[%clk 0:02:39.4]} 18... Rad8 {[%clk 0:02:01.9]} 19. a5 {[%clk 0:02:37.4]} 19...
g5 {[%clk 0:01:45.9]} 20. Bxa7 {[%clk 0:02:30.9]} 20... Rxd1+ {[%clk 0:01:45.6]}
21. Rxd1 {[%clk 0:02:31.8]} 21... g4 {[%clk 0:01:46.2]} 22. hxg4 {[%clk
0:02:30.6]} 22... Nxg4 {[%clk 0:01:46.3]} 23. Bc5 {[%clk 0:02:24]} 23... Rd8
{[%clk 0:01:32.2]} 24. Qb3 {[%clk 0:02:12.6]} 24... Rd3 {[%clk 0:01:23.4]} 25.
Rxd3 {[%clk 0:02:04.7]} 25... Nxd3 {[%clk 0:01:24.3]} 26. Bb6 {[%clk 0:02:04.7]}
26... Qe7 {[%clk 0:01:04.5]} 27. Nf5 {[%clk 0:02:03.8]} 27... Qf6 {[%clk
0:01:00.9]} 28. Qd1 {[%clk 0:02:02]} 28... Nf4 {[%clk 0:01:00.3]} 29. g3 {[%clk
0:01:57.2]} 29... Ne6 {[%clk 0:00:53.3]} 30. Kg2 {[%clk 0:01:51.9]} 30... Bf8
{[%clk 0:00:50.8]} 31. Nh2 {[%clk 0:01:27.8]} 31... Nxh2 {[%clk 0:00:39]} 32.
Kxh2 {[%clk 0:01:28.7]} 32... Ng5 {[%clk 0:00:32.6]} 33. Qg4 {[%clk 0:01:27.6]}
33... Kh7 {[%clk 0:00:22.7]} 34. Be3 {[%clk 0:01:27.9]} 34... Ne6 {[%clk
0:00:17.6]} 35. Kg2 {[%clk 0:01:25.6]} 35... Qd8 {[%clk 0:00:16]} 36. Qh5 {[%clk
0:01:22.7]} 36... Qf6 {[%clk 0:00:16.5]} 37. Qd1 {[%clk 0:00:58.3]} 37... Nc7
{[%clk 0:00:15.9]} 38. Qd7 {[%clk 0:00:56.6]} 38... Nb5 {[%clk 0:00:16.2]} 39.
Qe8 {[%clk 0:00:46.4]} 39... Kg8 {[%clk 0:00:10.7]} 40. Bxh6 {[%clk 0:00:42.9]}
1-0

[Event "Early-Titled-Tuesday-Blitz-January-30-2024"]
[Site "Chess.com"]
[Date "2024.01.30"]
[Round "4"]
[White "deribas12345"]
[Black "Hikaru"]
[Result "0-1"]
[WhiteElo "2503"]
[BlackElo "3288"]
[TimeControl "180+1"]
[EndTime "8:40:38 PST"]
[Termination "Hikaru won on time"]

1. d4 {[%clk 0:03:00.9]} 1... g6 {[%clk 0:02:58.5]} 2. c4 {[%clk 0:03:00.8]}
2... Bg7 {[%clk 0:02:58.5]} 3. Nc3 {[%clk 0:03:00.6]} 3... c5 {[%clk 0:02:59]}
4. d5 {[%clk 0:03:00.8]} 4... Bxc3+ {[%clk 0:02:58.9]} 5. bxc3 {[%clk
0:03:00.9]} 5... f5 {[%clk 0:02:59.5]} 6. Nf3 {[%clk 0:02:58.4]} 6... Qa5 {[%clk
0:02:56.9]} 7. Qb3 {[%clk 0:02:56.7]} 7... Nf6 {[%clk 0:02:56]} 8. e3 {[%clk
0:02:53.3]} 8... d6 {[%clk 0:02:51.1]} 9. Bd3 {[%clk 0:02:51.7]} 9... Nbd7
{[%clk 0:02:50.9]} 10. O-O {[%clk 0:02:45.1]} 10... Nb6 {[%clk 0:02:46]} 11. a4
{[%clk 0:02:14.5]} 11... Bd7 {[%clk 0:02:45.6]} 12. Ba3 {[%clk 0:02:14.7]} 12...
Nxa4 {[%clk 0:02:30.5]} 13. Rfc1 {[%clk 0:02:08.6]} 13... Qc7 {[%clk 0:02:28.7]}
14. Ng5 {[%clk 0:02:03]} 14... O-O {[%clk 0:02:26.7]} 15. Ne6 {[%clk 0:01:56.6]}
15... Bxe6 {[%clk 0:02:26.7]} 16. Qxa4 {[%clk 0:01:55.6]} 16... Bd7 {[%clk
0:02:23.7]} 17. Qc2 {[%clk 0:01:55.3]} 17... Rf7 {[%clk 0:02:18.5]} 18. f3
{[%clk 0:01:52.3]} 18... Raf8 {[%clk 0:02:18.1]} 19. Rcb1 {[%clk 0:01:51.2]}
19... b6 {[%clk 0:02:18.3]} 20. Bc1 {[%clk 0:01:51.3]} 20... e5 {[%clk
0:02:18.7]} 21. Bf1 {[%clk 0:01:45.5]} 21... g5 {[%clk 0:02:11.9]} 22. Qa2
{[%clk 0:01:38.8]} 22... Bc8 {[%clk 0:02:10.6]} 23. Bd2 {[%clk 0:01:36.1]} 23...
f4 {[%clk 0:02:10.9]} 24. Rb2 {[%clk 0:01:29.1]} 24... Rg7 {[%clk 0:02:10]} 25.
Kh1 {[%clk 0:01:25.3]} 25... Rff7 {[%clk 0:02:05]} 26. Qb1 {[%clk 0:01:22.1]}
26... Qd8 {[%clk 0:02:03.1]} 27. Bd3 {[%clk 0:01:18]} 27... h5 {[%clk
0:01:59.7]} 28. Be1 {[%clk 0:01:04.8]} 28... fxe3 {[%clk 0:01:35.5]} 29. Qc1
{[%clk 0:00:55.7]} 29... e4 {[%clk 0:01:33.1]} 30. fxe4 {[%clk 0:00:33.5]} 30...
Ng4 {[%clk 0:01:33.2]} 31. Kg1 {[%clk 0:00:26]} 31... h4 {[%clk 0:01:30.4]} 32.
h3 {[%clk 0:00:25.4]} 32... Ne5 {[%clk 0:01:30.8]} 33. Qxe3 {[%clk 0:00:23.9]}
33... g4 {[%clk 0:01:31.4]} 34. hxg4 {[%clk 0:00:16.8]} 34... Bxg4 {[%clk
0:01:31.1]} 35. Bf1 {[%clk 0:00:16.3]} 35... Rxf1+ {[%clk 0:01:24.7]} 36. Kxf1
{[%clk 0:00:16.2]} 36... Nxc4 {[%clk 0:01:25.6]} 37. Qh6 {[%clk 0:00:11.7]}
37... Nxb2 {[%clk 0:01:24]} 38. Bxh4 {[%clk 0:00:11.5]} 38... Rf7+ {[%clk
0:00:59.2]} 39. Kg1 {[%clk 0:00:11.3]} 39... Qf8 {[%clk 0:00:59.8]} 40. Qg6+
{[%clk 0:00:07.7]} 40... Qg7 {[%clk 0:01:00.2]} 41. Qxd6 {[%clk 0:00:07.7]}
41... Nd3 {[%clk 0:00:57.1]} 42. Qd8+ {[%clk 0:00:03.3]} 42... Kh7 {[%clk
0:00:57.2]} 43. d6 {[%clk 0:00:02.3]} 43... Ne5 {[%clk 0:00:54.1]} 0-1

[Event "Early-Titled-Tuesday-Blitz-January-30-2024"]
[Site "Chess.com"]
[Date "2024.01.30"]
[Round "4"]
[White "Crazy_girl99"]
[Black "ContrVersia"]
[Result "1-0"]
[WhiteElo "2622"]
[BlackElo "2838"]
[TimeControl "180+1"]
[EndTime "8:40:39 PST"]
[Termination "Crazy_girl99 won on time"]

1. e4 {[%clk 0:02:54.8]} 1... c5 {[%clk 0:02:59.4]} 2. Nf3 {[%clk 0:02:55.1]}
2... a6 {[%clk 0:03:00]} 3. a4 {[%clk 0:02:53.6]} 3... Nc6 {[%clk 0:02:59.7]} 4.
c4 {[%clk 0:02:53.6]} 4... g6 {[%clk 0:02:54.4]} 5. d4 {[%clk 0:02:53.1]} 5...
cxd4 {[%clk 0:02:54.7]} 6. Nxd4 {[%clk 0:02:53.5]} 6... Bg7 {[%clk 0:02:55.6]}
7. Be3 {[%clk 0:02:53.3]} 7... Qa5+ {[%clk 0:02:21.8]} 8. Nc3 {[%clk 0:02:51.5]}
8... Nf6 {[%clk 0:02:22.1]} 9. Bd3 {[%clk 0:02:41.9]} 9... Nxd4 {[%clk
0:01:58.7]} 10. Bxd4 {[%clk 0:02:40.4]} 10... d6 {[%clk 0:01:58.7]} 11. O-O
{[%clk 0:02:37.4]} 11... Be6 {[%clk 0:01:52.2]} 12. Rc1 {[%clk 0:02:33.5]} 12...
O-O {[%clk 0:01:44.2]} 13. b3 {[%clk 0:02:33.4]} 13... Rfc8 {[%clk 0:01:40]} 14.
h3 {[%clk 0:02:30.4]} 14... Nd7 {[%clk 0:01:39.7]} 15. Bxg7 {[%clk 0:02:27.6]}
15... Kxg7 {[%clk 0:01:40.6]} 16. Nd5 {[%clk 0:02:23.7]} 16... Bxd5 {[%clk
0:01:27.3]} 17. exd5 {[%clk 0:02:24.6]} 17... Re8 {[%clk 0:01:17.1]} 18. Re1
{[%clk 0:02:22.9]} 18... Qb4 {[%clk 0:01:17.1]} 19. Re3 {[%clk 0:02:11]} 19...
a5 {[%clk 0:01:17.2]} 20. Bc2 {[%clk 0:02:05]} 20... Qc5 {[%clk 0:01:04]} 21.
Qd2 {[%clk 0:02:03.4]} 21... b6 {[%clk 0:00:37]} 22. Rce1 {[%clk 0:02:03.2]}
22... Kf8 {[%clk 0:00:37.3]} 23. Qc3 {[%clk 0:01:59.2]} 23... Nf6 {[%clk
0:00:32.4]} 24. g4 {[%clk 0:01:56.3]} 24... h6 {[%clk 0:00:27.6]} 25. Kg2 {[%clk
0:01:52]} 25... Ra7 {[%clk 0:00:20.9]} 26. h4 {[%clk 0:01:48.7]} 26... Qc8
{[%clk 0:00:13.7]} 27. f3 {[%clk 0:01:46.7]} 27... Rc7 {[%clk 0:00:07.6]} 28. g5
{[%clk 0:01:35.1]} 28... hxg5 {[%clk 0:00:08.5]} 29. hxg5 {[%clk 0:01:35.7]}
29... Ng8 {[%clk 0:00:09.1]} 30. Rh1 {[%clk 0:01:31.9]} 30... e5 {[%clk
0:00:08.8]} 31. dxe6 {[%clk 0:01:27.6]} 31... Rxe6 {[%clk 0:00:07.7]} 32. Rh8
{[%clk 0:01:27.5]} 32... Rxe3 {[%clk 0:00:04.1]} 33. Qxe3 {[%clk 0:01:27.4]}
33... Qd8 {[%clk 0:00:04.6]} 34. f4 {[%clk 0:01:17]} 34... d5 {[%clk 0:00:04.9]}
35. Bd3 {[%clk 0:01:08.7]} 35... d4 {[%clk 0:00:04.2]} 36. Qh3 {[%clk
0:01:05.4]} 36... Ke7 {[%clk 0:00:01.9]} 37. Qh7 {[%clk 0:01:02.2]} 37... Rc8
{[%clk 0:00:01.7]} 38. Bxg6 {[%clk 0:00:59.5]} 38... Qf8 {[%clk 0:00:02.1]} 39.
Bf5 {[%clk 0:00:55.3]} 39... Rd8 {[%clk 0:00:01.7]} 40. g6 {[%clk 0:00:52.1]}
40... Kd6 {[%clk 0:00:01.8]} 41. Qxf7 {[%clk 0:00:49.2]} 1-0

[Event "Early-Titled-Tuesday-Blitz-January-30-2024"]
[Site "Chess.com"]
[Date "2024.01.30"]
[Round "4"]
[White "Imagine_Drag0n"]
[Black "BlackGod93"]
[Result "1-0"]
[WhiteElo "2777"]
[BlackElo "2564"]
[TimeControl "180+1"]
[EndTime "8:40:39 PST"]
[Termination "Imagine_Drag0n won by resignation"]

1. e4 {[%clk 0:03:00.9]} 1... e5 {[%clk 0:02:59.1]} 2. Nf3 {[%clk 0:02:59.5]}
2... Nc6 {[%clk 0:02:58.3]} 3. Bc4 {[%clk 0:02:58.2]} 3... Nf6 {[%clk
0:02:57.5]} 4. d3 {[%clk 0:02:57.4]} 4... h6 {[%clk 0:02:57.6]} 5. c3 {[%clk
0:02:56.1]} 5... d6 {[%clk 0:02:57.7]} 6. O-O {[%clk 0:02:52.2]} 6... g5 {[%clk
0:02:58.1]} 7. a4 {[%clk 0:02:48.1]} 7... g4 {[%clk 0:02:58.1]} 8. Nfd2 {[%clk
0:02:42.2]} 8... h5 {[%clk 0:02:58.4]} 9. Re1 {[%clk 0:02:42.2]} 9... Bh6 {[%clk
0:02:58.4]} 10. Nf1 {[%clk 0:02:41.9]} 10... Ne7 {[%clk 0:02:54.4]} 11. d4
{[%clk 0:02:40.1]} 11... Ng6 {[%clk 0:02:54.8]} 12. Ne3 {[%clk 0:02:28.1]} 12...
Nxe4 {[%clk 0:02:48.4]} 13. Nd5 {[%clk 0:02:23.5]} 13... Nf6 {[%clk 0:02:48.1]}
14. Bxh6 {[%clk 0:02:12.5]} 14... Rxh6 {[%clk 0:02:47.2]} 15. Qd2 {[%clk
0:01:37.5]} 15... Rh7 {[%clk 0:02:45.4]} 16. dxe5 {[%clk 0:01:34.7]} 16... Nxe5
{[%clk 0:02:45.3]} 17. Qg5 {[%clk 0:01:33.7]} 17... Nxd5 {[%clk 0:02:32.2]} 18.
Qg8+ {[%clk 0:01:33.4]} 18... Kd7 {[%clk 0:02:32.6]} 19. Qxh7 {[%clk 0:01:34]}
19... Nxc4 {[%clk 0:02:32.7]} 20. Qxf7+ {[%clk 0:01:33.7]} 20... Kc6 {[%clk
0:02:33.3]} 21. Rd1 {[%clk 0:01:08.3]} 21... Ndb6 {[%clk 0:01:49.8]} 22. b4
{[%clk 0:01:01.3]} 22... Ne5 {[%clk 0:01:36.1]} 23. b5+ {[%clk 0:00:58.6]} 23...
Kc5 {[%clk 0:01:36.3]} 24. Qf4 {[%clk 0:00:29.7]} 24... Nxa4 {[%clk 0:01:25.2]}
25. Rxa4 {[%clk 0:00:17.2]} 25... Be6 {[%clk 0:01:08.3]} 26. Nd2 {[%clk
0:00:14.3]} 26... Kb6 {[%clk 0:00:58.6]} 27. Qd4+ {[%clk 0:00:13.7]} 27... c5
{[%clk 0:00:59.2]} 28. bxc6+ {[%clk 0:00:13.6]} 28... Kxc6 {[%clk 0:00:59.8]}
29. Ne4 {[%clk 0:00:14]} 29... Nf7 {[%clk 0:00:46.1]} 30. Rxa7 {[%clk
0:00:13.8]} 30... Rxa7 {[%clk 0:00:42.8]} 31. Qxa7 {[%clk 0:00:14.7]} 31... Bd5
{[%clk 0:00:36.4]} 32. Qa4+ {[%clk 0:00:14.1]} 32... b5 {[%clk 0:00:35.9]} 33.
Qa6+ {[%clk 0:00:13.8]} 33... Kc7 {[%clk 0:00:31.6]} 34. Rxd5 {[%clk 0:00:12.8]}
1-0

[Event "Early-Titled-Tuesday-Blitz-January-30-2024"]
[Site "Chess.com"]
[Date "2024.01.30"]
[Round "4"]
[White "Susal_De_Silva"]
[Black "Slovineanu"]
[Result "1-0"]
[WhiteElo "2746"]
[BlackElo "2436"]
[TimeControl "180+1"]
[EndTime "8:40:41 PST"]
[Termination "Susal_De_Silva won by resignation"]

1. Nf3 {[%clk 0:03:00.5]} 1... d5 {[%clk 0:02:59.7]} 2. e3 {[%clk 0:02:59]} 2...
Nf6 {[%clk 0:02:58.2]} 3. b3 {[%clk 0:02:57.8]} 3... e6 {[%clk 0:02:53.7]} 4. c4
{[%clk 0:02:55.3]} 4... c5 {[%clk 0:02:47.9]} 5. Bb2 {[%clk 0:02:52.9]} 5... Nc6
{[%clk 0:02:46]} 6. cxd5 {[%clk 0:02:49.9]} 6... exd5 {[%clk 0:02:45.7]} 7. Nc3
{[%clk 0:02:47.7]} 7... d4 {[%clk 0:02:33.3]} 8. Na4 {[%clk 0:02:43.6]} 8... Be7
{[%clk 0:02:16.6]} 9. Rc1 {[%clk 0:02:37.4]} 9... dxe3 {[%clk 0:02:06.3]} 10.
fxe3 {[%clk 0:02:32.9]} 10... b6 {[%clk 0:02:04.5]} 11. d4 {[%clk 0:02:25.4]}
11... O-O {[%clk 0:01:34.9]} 12. dxc5 {[%clk 0:02:21.5]} 12... Qxd1+ {[%clk
0:01:29.5]} 13. Kxd1 {[%clk 0:02:20.5]} 13... bxc5 {[%clk 0:01:29.6]} 14. Nxc5
{[%clk 0:02:15.7]} 14... Rd8+ {[%clk 0:01:23.8]} 15. Ke1 {[%clk 0:02:04.2]}
15... Bf5 {[%clk 0:01:03]} 16. a3 {[%clk 0:01:40.6]} 16... Rac8 {[%clk
0:00:56.7]} 17. b4 {[%clk 0:01:33.8]} 17... a5 {[%clk 0:00:36.6]} 18. Ba6 {[%clk
0:01:27.4]} 18... axb4 {[%clk 0:00:27.8]} 19. Bxc8 {[%clk 0:01:19.1]} 19... Rxc8
{[%clk 0:00:28]} 20. Ke2 {[%clk 0:01:12.6]} 20... Bxc5 {[%clk 0:00:15]} 21. Rxc5
{[%clk 0:01:10.4]} 21... Ne4 {[%clk 0:00:15.4]} 22. Rxf5 {[%clk 0:01:07.6]}
22... bxa3 {[%clk 0:00:14.8]} 23. Bxa3 {[%clk 0:01:06.2]} 23... Ra8 {[%clk
0:00:14.9]} 24. Rc1 {[%clk 0:00:59.7]} 24... g6 {[%clk 0:00:14.5]} 25. Rf4
{[%clk 0:00:55]} 25... Rxa3 {[%clk 0:00:14]} 26. Rxe4 {[%clk 0:00:50.5]} 26...
Ra2+ {[%clk 0:00:12.2]} 27. Kd3 {[%clk 0:00:50.7]} 27... Na5 {[%clk 0:00:09.2]}
28. Rc8+ {[%clk 0:00:45.1]} 28... Kg7 {[%clk 0:00:09.1]} 29. Ra8 {[%clk
0:00:44.7]} 29... Ra3+ {[%clk 0:00:07.7]} 30. Kc2 {[%clk 0:00:41.3]} 30... Ra2+
{[%clk 0:00:05.5]} 31. Kb1 {[%clk 0:00:39.9]} 31... Ra3 {[%clk 0:00:05]} 32. Re5
{[%clk 0:00:39.1]} 32... Rb3+ {[%clk 0:00:04.7]} 33. Kc2 {[%clk 0:00:36.6]} 1-0